fUSD/lending_fUSD_20240211
["ID","MTS","AMOUNT","RATE_DAILY","PERIOD"]
[313722344,1707610271267,-536.44,0.00038904,30]
[313722345,1707610271276,-500.0,0.00038904,30]
[313722346,1707610271285,-500.0,0.00038904,30]
[313722347,1707610271294,-500.0,0.00038904,30]
[313722348,1707610271303,-545.34,0.00038904,30]
[313722349,1707610271312,-500.0,0.00038904,30]
[313722350,1707610271321,-500.0,0.00038904,30]
[313722351,1707610271330,-500.0,0.00038904,30]
[313722352,1707610271339,-500.0,0.00038904,30]
[313722353,1707610271348,-500.0,0.00038904,30]
[313722354,1707610271357,-555.57,0.00038904,30]
[313722355,1707610271366,-500.0,0.00038904,30]
[313722356,1707610271377,-500.0,0.00038904,30]
[313722357,1707610271387,-500.0,0.00038904,30]
[313722358,1707610271397,-500.0,0.00038904,30]
[313722359,1707610271407,-250.0,0.00038904,30]
[313722360,1707610271416,-500.0,0.00038904,30]
[313722361,1707610271425,-500.0,0.00038904,30]
[313722362,1707610271434,-500.0,0.00038904,30]
[313722363,1707610271443,-500.0,0.00038904,30]
[313722364,1707610271453,-500.0,0.00038904,30]
[313722365,1707610271463,-500.0,0.00038904,30]
[313722366,1707610271472,-500.0,0.00038904,30]
[313722367,1707610271482,-500.0,0.00038904,30]
[313722368,1707610271490,-500.0,0.00038904,30]
[313722369,1707610271500,-648.05,0.00038904,30]
[313722370,1707610271509,-500.0,0.00038904,30]
[313722371,1707610271519,-347.97308224,0.00038904,30]
[313722372,1707610271528,-500.0,0.00038904,30]
[313722373,1707610271537,-500.0,0.00038904,30]
[313722374,1707610271546,-500.0,0.00038904,30]
[313722375,1707610271555,-426.28721537,0.00038904,30]
[313722376,1707610271565,-1000.0,0.00038904,2]
[313722377,1707610271574,-500.0,0.00038904,30]
[313722378,1707610271584,-500.0,0.00038904,30]
[313722379,1707610271593,-646.76,0.00038904,30]
[313722380,1707610271602,-500.0,0.00038904,30]
[313722381,1707610271612,-500.0,0.00038904,30]
[313722382,1707610271621,-500.0,0.00038904,30]
[313722383,1707610271630,-500.0,0.00038904,30]
[313722384,1707610271641,-500.0,0.00038904,30]
[313722385,1707610271650,-500.0,0.00038904,30]
[313722386,1707610271660,-500.0,0.00038904,30]
[313722387,1707610271670,-500.0,0.00038904,30]
[313722388,1707610271679,-500.0,0.00038904,30]
[313722389,1707610271688,-500.0,0.00038904,30]
[313722390,1707610271698,-181.68118777,0.00038904,7]
[313722391,1707610271707,-500.0,0.00038904,30]
[313722392,1707610271716,-500.0,0.00038904,30]
[313722393,1707610271725,-500.0,0.00038904,30]
[313722394,1707610271735,-500.0,0.00038904,30]
[313722395,1707610271745,-500.0,0.00038904,30]
[313722396,1707610271755,-1676.27,0.00038904,30]
[313722397,1707610271765,-646.17,0.00038904,30]
[313722398,1707610271774,-500.0,0.00038904,30]
[313722399,1707610271783,-572.87,0.00038904,30]
[313722400,1707610271792,-500.0,0.00038904,30]
[313722401,1707610271801,-769.96,0.00038904,2]
[313722402,1707610271810,-1275.58,0.00038904,30]
[313722403,1707610271819,-500.0,0.00038904,30]
[313722404,1707610271828,-297.4335097,0.00038904,30]
[313722405,1707610271838,-528.81,0.00038904,30]
[313722406,1707610271847,-688.53,0.00038904,30]
[313722407,1707610271856,-500.0,0.00038904,30]
[313722408,1707610271865,-500.0,0.00038904,30]
[313722409,1707610271874,-500.0,0.00038904,30]
[313722410,1707610271883,-361.05647437,0.00038904,30]
[313722411,1707610271892,-500.0,0.00038904,30]
[313722412,1707610271901,-500.0,0.00038904,30]
[313722413,1707610271911,-500.0,0.00038904,30]
[313722414,1707610271921,-1465.99,0.00038904,30]
[313722415,1707610271930,-500.0,0.00038904,30]
[313722416,1707610271939,-500.0,0.00038904,30]
[313722417,1707610271948,-500.0,0.00038904,30]
[313722418,1707610271957,-500.0,0.00038904,30]
[313722419,1707610271967,-500.0,0.00038904,30]
[313722420,1707610271977,-515.65645175,0.00038904,30]
[313722421,1707610271986,-500.0,0.00038904,30]
[313722422,1707610271996,-500.0,0.00038904,30]
[313722423,1707610272008,-840.79,0.00038904,30]
[313722424,1707610272018,-500.0,0.00038904,30]
[313722425,1707610272028,-593.48,0.00038904,30]
[313722426,1707610272038,-1021.32,0.00038904,30]
[313722427,1707610272049,-500.0,0.00038904,30]
[313722428,1707610272058,-500.0,0.00038904,30]
[313722429,1707610272067,-500.0,0.00038904,30]
[313722430,1707610272078,-517.92,0.00038904,30]
[313722431,1707610272088,-500.0,0.00038904,30]
[313722432,1707610272098,-500.0,0.00038904,30]
[313722433,1707610272107,-500.0,0.00038904,30]
[313722434,1707610272117,-910.78,0.00038904,30]
[313722435,1707610272126,-500.0,0.00038904,30]
[313722436,1707610272135,-518.97,0.00038904,30]
[313722437,1707610272145,-506.97,0.00038904,30]
[313722438,1707610272155,-516.86,0.00038904,30]
[313722439,1707610272165,-500.0,0.00038904,30]
[313722440,1707610272175,-500.0,0.00038904,30]
[313722441,1707610272184,-500.0,0.00038904,30]
[313722442,1707610272194,-877.57,0.00038904,30]
[313722443,1707610272204,-500.0,0.00038904,30]
[313722444,1707610272214,-956.96,0.00038904,30]
[313722445,1707610272224,-500.0,0.00038904,30]
[313722446,1707610272233,-613.18,0.00038904,30]
[313722447,1707610272242,-537.91,0.00038904,30]
[313722448,1707610272251,-500.0,0.00038904,30]
[313722449,1707610272260,-752.48,0.00038904,30]
[313722450,1707610272269,-500.0,0.00038904,30]
[313722451,1707610272279,-518.12,0.00038904,30]
[313722452,1707610272288,-579.75,0.00038904,30]
[313722453,1707610272298,-640.04,0.00038904,30]
[313722454,1707610272307,-500.0,0.00038904,30]
[313722455,1707610272317,-1139.53,0.00038904,30]
[313722456,1707610272326,-537.54,0.00038904,30]
[313722457,1707610272336,-500.0,0.00038904,30]
[313722458,1707610272345,-535.23,0.00038904,30]
[313722459,1707610272354,-500.0,0.00038904,30]
[313722460,1707610272364,-584.16,0.00038904,30]
[313722461,1707610272373,-692.83,0.00038904,30]
[313722462,1707610272382,-500.0,0.00038904,30]
[313722463,1707610272392,-788.11,0.00038904,30]
[313722464,1707610272401,-500.0,0.00038904,30]
[313722465,1707610272412,-500.0,0.00038904,30]
[313722466,1707610272422,-500.0,0.00038904,30]
[313722467,1707610272432,-500.0,0.00038904,30]
[313722468,1707610272442,-1033.64,0.00038904,30]
[313722469,1707610272451,-738.56,0.00038904,30]
[313722470,1707610272461,-500.0,0.00038904,30]
[313722471,1707610272470,-835.83,0.00038904,30]
[313722472,1707610272479,-669.49,0.00038904,30]
[313722473,1707610272488,-1034.04,0.00038904,30]
[313722474,1707610272497,-500.0,0.00038904,30]
[313722475,1707610272507,-500.0,0.00038904,30]
[313722476,1707610272515,-848.8,0.00038904,30]
[313722477,1707610272525,-500.0,0.00038904,30]
[313722478,1707610272534,-500.0,0.00038904,30]
[313722479,1707610272543,-558.1,0.00038904,30]
[313722480,1707610272553,-500.0,0.00038904,30]
[313722481,1707610272562,-500.0,0.00038904,30]
[313722482,1707610272571,-683.74,0.00038904,30]
[313722483,1707610272580,-846.05,0.00038904,30]
[313722484,1707610272590,-1243.96,0.00038904,30]
[313722485,1707610272599,-500.0,0.00038904,30]
[313722486,1707610272609,-528.21747458,0.00038904,30]
[313722487,1707610272619,-754.28,0.00038904,30]
[313722488,1707610272629,-500.0,0.00038904,30]
[313722489,1707610272639,-752.75,0.00038904,30]
[313722490,1707610272648,-1474.29,0.00038904,30]
[313722491,1707610272660,-667.53,0.00038904,30]
[313722492,1707610272670,-500.0,0.00038904,30]
[313722493,1707610272680,-500.0,0.00038904,30]
[313722494,1707610272689,-627.91749453,0.00038904,30]
[313722495,1707610272699,-1403.54,0.00038904,30]
[313722496,1707610272709,-1114.97,0.00038904,30]
[313722497,1707610272719,-530.05,0.00038904,30]
[313722498,1707610272728,-520.83,0.00038904,30]
[313722499,1707610272737,-725.96,0.00038904,30]
[313722500,1707610272747,-1649.21,0.00038904,30]
[313722501,1707610272756,-1542.54,0.00038904,30]
[313722502,1707610272766,-1346.59,0.00038904,30]
[313722503,1707610272776,-1053.84,0.00038904,30]
[313722504,1707610272785,-500.0,0.00038904,30]
[313722505,1707610272794,-500.0,0.00038904,30]
[313722506,1707610272803,-500.0,0.00038904,30]
[313722507,1707610272812,-1513.28,0.00038904,30]
[313722508,1707610272822,-500.0,0.00038904,30]
[313722509,1707610272832,-500.0,0.00038904,30]
[313722510,1707610272841,-500.0,0.00038904,30]
[313722511,1707610272850,-500.0,0.00038904,30]
[313722512,1707610272859,-500.0,0.00038904,30]
[313722513,1707610272868,-500.0,0.00038904,30]
[313722514,1707610272877,-510.03888508,0.00038904,30]
[313722515,1707610272886,-748.27,0.00038904,30]
[313722516,1707610272896,-500.0,0.00038904,30]
[313722517,1707610272904,-571.36,0.00038904,30]
[313722518,1707610272914,-500.0,0.00038904,30]
[313722519,1707610272923,-500.0,0.00038904,30]
[313722520,1707610272932,-610.13,0.00038904,30]
[313722521,1707610272940,-500.0,0.00038904,30]
[313722522,1707610272950,-500.0,0.00038904,30]
[313722523,1707610272959,-500.0,0.00038904,30]
[313722524,1707610272968,-632.71,0.00038904,30]
[313722525,1707610272978,-500.0,0.00038904,30]
[313722526,1707610272987,-747.38,0.00038904,30]
[313722527,1707610272997,-500.0,0.00038904,30]
[313722528,1707610273010,-619.45954403,0.00038904,30]
[313722529,1707610273018,-1146.92,0.00038904,30]
[313722530,1707610273027,-1104.17,0.00038904,30]
[313722531,1707610273036,-500.0,0.00038904,30]
[313722532,1707610273046,-500.0,0.00038904,30]
[313722533,1707610273056,-500.0,0.00038904,30]
[313722534,1707610273065,-500.0,0.00038904,30]
[313722535,1707610273074,-500.0,0.00038904,30]
[313722536,1707610273084,-655.43,0.00038904,30]
[313722537,1707610273094,-500.0,0.00038904,30]
[313722538,1707610273104,-1039.53,0.00038904,7]
[313722539,1707610273113,-500.0,0.00038904,30]
[313722540,1707610273122,-500.0,0.00038904,30]
[313722541,1707610273131,-500.0,0.00038904,30]
[313722542,1707610273140,-500.0,0.00038904,30]
[313722543,1707610273149,-650.17,0.00038904,30]
[313722544,1707610273159,-1041.2,0.00038904,30]
[313722545,1707610273169,-1066.44,0.00038904,30]
[313722546,1707610273179,-1455.0,0.00038904,30]
[313722547,1707610273188,-500.0,0.00038904,30]
[313722548,1707610273197,-500.0,0.00038904,30]
[313722549,1707610273206,-703.21,0.00038904,30]
[313722550,1707610273215,-500.0,0.00038904,30]
[313722551,1707610273225,-1351.38,0.00038904,30]
[313722552,1707610273234,-500.0,0.00038904,30]
[313722553,1707610273243,-1671.08,0.00038904,30]
[313722554,1707610273252,-500.0,0.00038904,30]
[313722555,1707610273261,-550.9,0.00038904,30]
[313722556,1707610273271,-500.0,0.00038904,30]
[313722557,1707610273280,-541.51,0.00038904,30]
[313722558,1707610273289,-500.0,0.00038904,30]
[313722559,1707610273298,-1132.03,0.00038904,30]
[313722560,1707610273308,-500.0,0.00038904,30]
[313722561,1707610273317,-500.0,0.00038904,30]
[313722562,1707610273327,-578.57219692,0.00038904,30]
[313722563,1707610273336,-500.0,0.00038904,30]
[313722564,1707610273345,-500.0,0.00038904,30]
[313722565,1707610273354,-500.0,0.00038904,30]
[313722566,1707610273363,-500.0,0.00038904,30]
[313722567,1707610273372,-1429.03,0.00038904,30]
[313722568,1707610273381,-1228.01,0.00038904,30]
[313722569,1707610273391,-707.43,0.00038904,30]
[313722570,1707610273400,-500.0,0.00038904,30]
[313722571,1707610273411,-551.35389746,0.00038904,30]
[313722572,1707610273420,-500.0,0.00038904,30]
[313722573,1707610273429,-500.0,0.00038904,30]
[313722574,1707610273438,-500.0,0.00038904,30]
[313722575,1707610273447,-1369.0,0.00038904,30]
[313722576,1707610273457,-500.0,0.00038904,30]
[313722577,1707610273466,-739.92,0.00038904,30]
[313722578,1707610273476,-500.0,0.00038904,30]
[313722579,1707610273485,-399.29497133,0.00038904,30]
[313722580,1707610273494,-500.0,0.00038904,30]
[313722581,1707610273504,-500.0,0.00038904,30]
[313722582,1707610273514,-549.28,0.00038904,30]
[313722583,1707610273523,-500.0,0.00038904,30]
[313722584,1707610273532,-500.0,0.00038904,30]
[313722585,1707610273542,-802.2,0.00038904,30]
[313722586,1707610273551,-569.97,0.00038904,30]
[313722587,1707610273560,-500.0,0.00038904,30]
[313722588,1707610273569,-500.0,0.00038904,30]
[313722589,1707610273578,-500.0,0.00038904,30]
[313722590,1707610273588,-500.0,0.00038904,30]
[313722591,1707610273597,-1231.84,0.00038904,30]
[313722592,1707610273606,-691.61,0.00038904,30]
[313722593,1707610273615,-500.0,0.00038904,30]
[313722594,1707610273625,-500.0,0.00038904,30]
[313722595,1707610273634,-777.31,0.00038904,30]
[313722596,1707610273643,-500.0,0.00038904,30]
[313722597,1707610273652,-500.0,0.00038904,30]
[313722598,1707610273663,-663.95,0.00038904,2]
[313722599,1707610273672,-1237.14,0.00038904,30]
[313722600,1707610273681,-511.35,0.00038904,30]
[313722601,1707610273691,-635.23988199,0.00038904,30]
[313722602,1707610273700,-500.0,0.00038904,30]
[313722603,1707610273709,-595.79111409,0.00038904,30]
[313722604,1707610274295,267.71520337,0.00022,2]
[313722605,1707610274694,7595.1976684,0.00021965,2]
[313722606,1707610274724,-4031.04823494,0.00022063,5]
[313722607,1707610274736,-765.94522118,0.00022063,5]
[313722608,1707610275342,-1914.45585789,0.00022063,5]
[313722609,1707610275355,-425.16211427,0.00022063,5]
[313722610,1707610275366,-150.01,0.00025299,2]
[313722611,1707610275378,-606.09,0.00038356,30]
[313722612,1707610275387,-500.0,0.00038356,30]
[313722613,1707610275398,-606.09,0.0003863,30]
[313722614,1707610275407,-546.48888591,0.00038904,30]
[313722615,1707610275417,-500.0,0.00038904,30]
[313722616,1707610275427,-500.0,0.00038904,30]
[313722617,1707610275437,-699.76,0.00038904,30]
[313722618,1707610275446,-1185.69,0.00038904,30]
[313722619,1707610275456,-500.0,0.00038904,30]
[313722620,1707610275466,-500.0,0.00038904,30]
[313722621,1707610275476,-500.0,0.00038904,30]
[313722622,1707610275486,-599.1,0.00038904,30]
[313722623,1707610275496,-500.0,0.00038904,30]
[313722624,1707610275506,-671.45,0.00038904,30]
[313722625,1707610275515,-500.0,0.00038904,30]
[313722626,1707610275525,-500.0,0.00038904,30]
[313722627,1707610275534,-500.0,0.00038904,30]
[313722628,1707610275544,-730.55,0.00038904,30]
[313722629,1707610275554,-500.0,0.00038904,30]
[313722630,1707610275564,-1918.39,0.00038904,30]
[313722631,1707610275575,-653.86,0.00038904,30]
[313722632,1707610275825,-500.0,0.00038904,30]
[313722633,1707610275844,-500.0,0.00038904,30]
[313722634,1707610275869,-640.21,0.00038904,30]
[313722635,1707610275879,-444.6992928,0.00038904,30]
[313722636,1707610275892,-103.9207072,0.00038904,30]
[313722637,1707610275902,-547.97,0.00038904,30]
[313722638,1707610275913,-1099.1,0.00038904,30]
[313722639,1707610275922,-500.0,0.00038904,30]
[313722640,1707610275932,-500.0,0.00038904,30]
[313722641,1707610275941,-500.0,0.00038904,30]
[313722642,1707610275951,-500.0,0.00038904,30]
[313722643,1707610275961,-500.0,0.00038904,30]
[313722644,1707610275970,-500.0,0.00038904,30]
[313722645,1707610275980,-92.2092928,0.00038904,30]
[313722646,1707610277456,362.36944005,0.00022,2]
[313722647,1707610290416,11325.4343,0.00021946,2]
[313722648,1707610312993,19056.12335288,0.00021946,2]
[313722649,1707610317415,1102.72886404,0.00021946,2]
[313722650,1707610319341,612.36357773,0.00021946,2]
[313722651,1707610324311,206.0,0.00021378,2]
[313722652,1707610327076,438.5439,0.00021931,2]
[313722653,1707610331420,306.17303704,0.00021946,2]
[313722654,1707610332517,267.93652484,0.00021946,2]
[313722655,1707610333841,19056.12335288,0.00021946,2]
[313722656,1707610339347,612.36357773,0.00021946,2]
[313722657,1707610346522,267.93652484,0.00021946,2]
[313722658,1707610351442,245000.0,0.00021966,2]
[313722659,1707610353882,17012.35387117,0.00021946,2]
[313722660,1707610355347,612.36357773,0.00021946,2]
[313722661,1707610373220,294.4245,0.00021905,2]
[313722662,1707610393357,608.39318941,0.00021946,2]
[313722663,1707610617774,109164.39427,0.000219,3]
[313722664,1707610739820,10117.663612,0.00021951,2]
[313722665,1707610812526,184.6283555,0.00021963,2]
[313722666,1707611115956,184.62835549,0.00021963,2]
[313722696,1707611404216,206.0,0.00021889,2]
[313722714,1707611432096,-734.17547666,0.00022062,2]
[313722715,1707611432105,-721.45,0.00022063,2]
[313722716,1707611432115,-247.70736214,0.00022063,2]
[313722717,1707611432127,-469.41263786,0.00022063,2]
[313722718,1707611432136,-91.48037925,0.00022063,2]
[313722719,1707611432184,-58.51962075,0.00022063,2]
[313722720,1707611432194,-734.87,0.00022064,2]
[313722721,1707611432205,-731.23,0.00022064,2]
[313722722,1707611432214,-724.76,0.00022064,2]
[313722723,1707611432224,-732.33,0.00022064,2]
[313722724,1707611432234,-712.1,0.00022064,2]
[313722725,1707611432243,-709.6,0.00022064,2]
[313722726,1707611432253,-736.58,0.00022064,2]
[313722727,1707611432263,-165.30463324,0.000222,2]
[313722728,1707611432272,-766.64494329,0.000223,2]
[313722729,1707611432282,-500.0,0.00022816,2]
[313722730,1707611432291,-7595.19766832,0.00022855,2]
[313722731,1707611432300,-362.78264774,0.00022974,2]
[313722732,1707611432309,-999.99,0.00022974,2]
[313722733,1707611432320,-6803.97496387,0.00022974,2]
[313722734,1707611432333,-1210.24940779,0.00022974,2]
[313722735,1707611432346,-727.69660047,0.00022974,2]
[313722736,1707611432361,-480.34451528,0.00022974,2]
[313722737,1707611432374,-600.0,0.00022974,2]
[313722739,1707611432385,-177.72451259,0.00022974,2]
[313722741,1707611432395,-347.50388396,0.00023745,2]
[313722768,1707611432665,-1926.7925768,0.00023745,2]
[313722770,1707611432678,-330.19856431,0.00023745,2]
[313722771,1707611432703,-4990.70264325,0.00023745,2]
[313722772,1707611432713,-491.04,0.00024166,2]
[313722773,1707611432721,-210.0,0.00024269,2]
[313722774,1707611432731,-766.64494329,0.00024536,2]
[313722775,1707611432739,-7595.19766832,0.00024636,2]
[313722776,1707611432748,-318.04501948,0.00025,4]
[313722777,1707611432760,-640.14719797,0.00025,4]
[313722778,1707611432784,-58.38415598,0.00025,4]
[313722779,1707611432793,-324.4968952,0.00025,2]
[313722780,1707611432803,-165.7026076,0.00025,3]
[313722786,1707611438150,-202.08012209,0.00024,2]
[313722788,1707611438160,-184.2973924,0.00025,3]
[313722790,1707611438169,-222.8003538,0.00025,2]
[313722792,1707611438182,-399.69817508,0.00025,2]
[313722794,1707611438192,-305.01610739,0.00025,2]
[313722795,1707611438201,-937.98396588,0.00025,2]
[313722796,1707611438212,-203.06443632,0.00025,2]
[313722797,1707611438221,-155.0,0.00025,2]
[313722798,1707611438231,-1591.41795958,0.00025,2]
[313722799,1707611438241,-697.48549167,0.00025,2]
[313722800,1707611438251,-1013.88035135,0.00025,2]
[313722801,1707611438285,-895.03475112,0.00025,2]
[313722802,1707611438294,-168.22521568,0.00025,2]
[313722803,1707611438304,-206.0,0.00025354,7]
[313722804,1707611438317,-500.0,0.00025446,2]
[313722805,1707611438327,-14549.418088,0.00025525,2]
[313722806,1707611438368,-251.70096473,0.00025525,2]
[313722807,1707611439046,-2349.81200394,0.00025525,2]
[313722819,1707611440799,-258.97851396,0.00025525,2]
[313722822,1707611440852,-7731.28839578,0.00025525,2]
[313722823,1707611440865,-8947.21879473,0.00025525,2]
[313722824,1707611440877,-8943.78386462,0.00025525,2]
[313722825,1707611440890,-743.87763384,0.00025525,2]
[313722826,1707611440899,-7595.19766832,0.00025526,2]
[313722827,1707611440909,-738.47335936,0.00025693,2]
[313722828,1707611440921,-8943.84023489,0.00025693,2]
[313722854,1707611446375,-431.79703238,0.00025693,2]
[313722874,1707612632332,-579.93156402,0.00022757,2]
[313722875,1707612632345,-154.24391264,0.00022757,2]
[313722876,1707612632354,-345.09482999,0.00022758,2]
[313722877,1707612632364,-155.0,0.00022759,2]
[313722878,1707612632373,-500.0,0.00022816,2]
[313722879,1707612632382,-528.23,0.00023065,2]
[313722880,1707612632391,-150.0,0.00024051,2]
[313722881,1707612632401,-500.0,0.00024941,2]
[313722882,1707612632410,-971.94820563,0.00024941,2]
[313722883,1707612632430,-1282.20921404,0.00024941,2]
[313722884,1707612632441,-516.09812629,0.00024941,2]
[313722885,1707612632452,-1050.63445404,0.00024941,2]
[313722886,1707612632461,-243.46837669,0.00024958,2]
[313722887,1707612632504,-756.53162331,0.00024958,2]
[313722888,1707612632513,-250.0,0.00024993,2]
[313722889,1707612632526,-116.6207864,0.00024999,2]
[313722890,1707612632562,-1184.4109398,0.00024999,2]
[313722916,1707612638383,-165.30463324,0.00022756,2]
[313722917,1707612638392,-194.18,0.00024941,2]
[313722918,1707612638402,-1326.85903281,0.00024999,2]
[313722919,1707612638439,-179.11924099,0.00024999,2]
[313722920,1707612638449,-150.0,0.00024999,2]
[313722921,1707612638458,-324.4968952,0.00025,2]
[313722922,1707612638467,-1591.41795958,0.00025,2]
[313722923,1707612638476,-158.05988873,0.00025,2]
[313722924,1707612638488,-1750.85521374,0.00025,2]
[313722925,1707612638498,-697.48549167,0.00025,2]
[313722926,1707612638507,-305.01610739,0.00025,2]
[313722927,1707612638516,-937.98396588,0.00025,2]
[313722928,1707612638526,-155.0,0.00025,2]
[313722929,1707612638536,-168.22521568,0.00025,2]
[313722930,1707612638545,-622.49852888,0.00025001,2]
[313722931,1707612638554,-2576.01,0.00025011,2]
[313722932,1707612638564,-250.0,0.00025011,2]
[313722933,1707612638573,-23900.0,0.00025019,2]
[313722934,1707612638582,-1061.54,0.00025051,2]
[313722935,1707612638591,-200.0,0.00025084,2]
[313722936,1707612638600,-2000.0,0.00025099,2]
[313722937,1707612638610,-500.0,0.00025139,2]
[313722938,1707612638619,-170.07,0.00025167,2]
[313722939,1707612638628,-1368.01,0.00025177,2]
[313722940,1707612638637,-10000.0,0.00025181,2]
[313722941,1707612638646,-4632.58,0.00025189,2]
[313722942,1707612638656,-2623.6,0.00025193,2]
[313722943,1707612638665,-455.64,0.00025209,2]
[313722944,1707612638675,-250.0,0.00025288,2]
[313722945,1707612638684,-473.13,0.00025312,2]
[313722946,1707612638694,-528.23,0.00025329,2]
[313722947,1707612638705,-499.99,0.00025333,2]
[313722948,1707612638714,-1423.2574979,0.00025339,2]
[313722949,1707612638724,-2123.16,0.00025363,2]
[313722950,1707612638733,-156.87,0.00025403,2]
[313722951,1707612638743,-1023.27147472,0.00025518,5]
[313722953,1707612638752,-1000.0,0.00025518,2]
[313722954,1707612638761,-490.31406067,0.00025518,2]
[313722955,1707612638770,-156.87,0.00025523,2]
[313722956,1707612638780,-10325.85377025,0.00025593,2]
[313722957,1707612638793,-639.0403552,0.00025593,2]
[313722959,1707612638805,-2234.43507455,0.00025593,2]
[313722961,1707612638815,-156.87,0.00025643,2]
[313722963,1707612638824,-970.81492545,0.00025691,2]
[313722968,1707612639071,-2112.3169549,0.00025691,2]
[313722969,1707612639082,-3170.93065347,0.00025691,2]
[313722970,1707612639101,-639.79636647,0.00025691,2]
[313722971,1707612639112,-1061.1227723,0.00025691,2]
[313722972,1707612639124,-840.12646889,0.00025691,2]
[313722973,1707612639135,-2449.1341411,0.00025691,2]
[313722974,1707612639146,-252.000007,0.00025691,2]
[313722975,1707612639217,-12280.41166017,0.00025691,2]
[313722976,1707612639226,-919.88799472,0.00025693,3]
[313722977,1707612639235,-511.82527856,0.00025693,2]
[313722978,1707612639244,-2606.90049886,0.00025693,2]
[313722979,1707612639254,-200.0,0.00025693,2]
[313722980,1707612639264,-155.0,0.00025693,2]
[313722981,1707612639273,-155.0,0.00025693,2]
[313722982,1707612639285,-155.0,0.00025693,2]
[313722983,1707612639294,-155.0,0.00025693,2]
[313722984,1707612639304,-155.0,0.00025693,2]
[313722985,1707612639313,-155.0,0.00025693,2]
[313722986,1707612639322,-155.19156251,0.00025693,2]
[313722987,1707612639332,-535.47054008,0.00025693,2]
[313722988,1707612639341,-156.65085918,0.00025693,2]
[313722989,1707612639350,-701.47543976,0.00025693,2]
[313722990,1707612639359,-155.0,0.00025693,2]
[313722991,1707612639368,-249.80069141,0.00025693,2]
[313722992,1707612639377,-155.0,0.00025693,2]
[313722993,1707612639386,-164.90943207,0.00025693,2]
[313722994,1707612639396,-156.87,0.00025764,2]
[313722995,1707612639405,-206.0,0.00025818,2]
[313722996,1707612639414,-156.87,0.00025884,2]
[313722997,1707612639423,-1423.2574979,0.00025981,2]
[313722998,1707612639432,-156.87,0.00026004,2]
[313722999,1707612639441,-156.87,0.00026125,2]
[313723000,1707612639450,-156.87,0.00026245,2]
[313723001,1707612639460,-156.87,0.00026365,2]
[313723002,1707612639468,-170.07,0.00026426,2]
[313723003,1707612639477,-156.87,0.00026486,2]
[313723004,1707612639486,-156.87,0.00026606,2]
[313723005,1707612639495,-156.87,0.00026726,2]
[313723006,1707612639505,-455.64,0.00026852,2]
[313723007,1707612639514,-166.73938462,0.00027,2]
[313723008,1707612639523,-400.0,0.00027,3]
[313723009,1707612639534,-394.20942816,0.00027304,2]
[313723010,1707612639544,-155.0,0.00027304,2]
[313723011,1707612639553,-2316.88234043,0.00027304,2]
[313723012,1707612639563,-1004.14444886,0.00027304,2]
[313723013,1707612639572,-241.71037459,0.00027305,2]
[313723014,1707612639581,-7475.38075488,0.00027305,2]
[313723015,1707612639590,-155.0,0.00027397,2]
[313723016,1707612639599,-153.0,0.00027499,2]
[313723017,1707612639608,-528.23,0.00027593,2]